bitfinex/quotes_SOLUSD_20260305
["timestamp","ask_amount","ask_price","bid_price","bid_amount"]
[1772752589146,0.54657737,89.028,88.967,0.53275289]
[1772752589358,0.54657737,89.028,88.948,3.97815716]
[1772752589359,0.54657737,89.019,88.95,0.53275289]
[1772752589546,0.54657737,89.018,88.95,0.53275289]
[1772752589945,0.51354966,89.008,88.95,0.53275289]
[1772752590145,0.51354966,89.006,88.952,0.56360221]
[1772752591873,0.51354966,89.006,88.94,0.56360221]
[1772752591874,0.51354966,88.989,88.94,0.56360221]
[1772752592570,0.51354966,88.987,88.942,0.56360221]
[1772752593865,0.51354966,88.985,88.943,11.80675793]
[1772752596146,0.51354966,88.983,88.943,11.80675793]
[1772752597354,0.51354966,88.981,88.944,0.56360221]
[1772752598354,0.51354966,88.981,88.93,0.56360221]
[1772752600557,0.51354966,88.979,88.932,0.56360221]
[1772752603455,0.51354966,88.977,88.934,0.56360221]
[1772752606478,0.51354966,88.975,88.936,0.56360221]
[1772752608769,0.51354966,88.975,88.938,0.56360221]
[1772752610178,0.51354966,88.975,88.939,0.56360221]
[1772752612677,0.51354966,88.975,88.942,0.56360221]
[1772752613895,0.51354966,88.975,88.944,0.56360221]
[1772752615501,28.09361584,88.989,88.944,0.56360221]
[1772752615502,0.51354966,88.973,88.944,0.56360221]
[1772752618405,0.51354966,88.973,88.946,0.56360221]
[1772752620304,0.5425199,88.971,88.946,0.56360221]
[1772752620599,0.5425199,88.969,88.945,11.24290291]
[1772752621404,0.5425199,88.969,88.945,11.75142801]
[1772752621599,0.5425199,88.969,88.946,0.5085251]
[1772752622103,0.5425199,88.967,88.946,0.5085251]
[1772752623101,11.2395661,88.972,88.946,0.5085251]
[1772752623406,11.782086,88.972,88.946,0.5085251]
[1772752623605,0.5425199,88.971,88.948,0.5085251]
[1772752624587,0.5425199,88.969,88.948,0.5085251]
[1772752625406,0.5425199,88.969,88.947,11.24265011]
[1772752626012,0.5425199,88.967,88.945,0.5085251]
[1772752628583,0.5425199,88.974,88.947,0.5085251]
[1772752628803,0.5425199,88.979,88.947,0.5085251]
[1772752629806,0.5425199,88.977,88.949,0.5085251]
[1772752632490,0.5425199,88.977,88.946,28.10694129]
[1772752632491,0.5425199,88.977,88.951,0.5085251]
[1772752632812,0.5425199,88.975,88.951,0.5085251]
[1772752635013,0.5425199,88.975,88.953,0.5085251]
[1772752636404,0.5425199,88.975,88.955,0.5085251]
[1772752637210,0.5425199,88.98,88.955,0.5085251]
[1772752637910,0.5425199,88.984,88.955,0.5085251]
[1772752638092,0.5425199,89.004,88.955,0.5085251]
[1772752642812,0.5425199,89.002,88.957,0.5085251]
[1772752644313,0.5425199,89.0,88.959,0.5085251]
[1772752647214,0.5425199,89.0,88.961,0.5085251]
[1772752647395,0.5425199,89.0,88.962,0.5085251]
[1772752650092,0.5425199,89.0,88.964,0.54382325]
[1772752651519,0.51570975,89.014,88.964,0.54382325]
[1772752651705,0.51570975,89.013,88.964,0.54382325]
[1772752652096,0.51570975,89.011,88.966,0.53892292]
[1772752652814,0.28432314,89.036,88.966,0.53892292]
[1772752652815,0.51570975,89.015,88.967,0.53892292]
[1772752653011,0.51570975,89.015,88.969,0.53892292]
[1772752654593,11.23418788,89.014,88.97,39.33910306]
[1772752654799,0.51570975,89.013,88.972,0.53892292]
[1772752656702,0.51570975,89.011,88.974,0.53892292]
[1772752659404,0.51570975,89.011,88.976,0.53892292]
[1772752660828,0.51570975,89.011,88.975,11.23911211]
[1772752661011,0.51570975,89.009,88.971,11.23951844]
[1772752662546,0.51570975,89.007,88.965,0.53892292]
[1772752665824,0.51570975,89.005,88.967,0.53892292]
[1772752667813,0.51570975,89.005,88.954,0.28432314]
[1772752667814,0.51570975,89.005,88.969,0.53892292]
[1772752669335,0.51570975,89.01,88.97,0.53892292]
[1772752669936,0.51570975,89.01,88.973,0.53892292]
[1772752673256,0.51570975,89.01,88.975,0.53892292]
[1772752675527,0.51570975,89.01,88.977,0.53892292]
[1772752678560,0.51570975,89.01,88.979,0.53892292]
[1772752681546,0.51570975,89.01,88.981,0.52029598]
[1772752682062,0.52614429,89.029,88.982,0.52029598]
[1772752682960,0.52614429,89.028,88.982,0.52029598]
[1772752683345,0.52614429,89.026,88.984,0.52029598]
[1772752686864,0.52614429,89.024,88.986,0.52029598]
[1772752690066,11.23305213,89.023,88.987,11.2375965]
[1772752690364,0.52614429,89.022,88.988,0.52029598]
[1772752692667,0.52614429,89.02,88.99,0.52029598]
[1772752694969,0.52614429,89.02,88.992,0.52029598]
[1772752695967,0.52614429,89.018,88.992,0.52029598]
[1772752699463,0.52614429,89.018,88.993,11.23683885]
[1772752699964,0.52614429,89.016,88.993,11.23683885]
[1772752700172,0.52614429,89.016,88.993,11.75713483]
[1772752700665,0.52614429,89.016,88.994,0.52029598]
[1772752705569,0.52614429,89.016,88.995,11.7568823]
[1772752705876,0.52614429,89.016,88.996,0.52029598]
[1772752708564,0.52614429,89.016,88.997,11.2363338]
[1772752708778,0.52614429,89.016,88.997,11.75662978]
[1772752711278,0.52614429,89.016,88.993,0.52970442]
[1772752713179,0.48575015,89.044,88.993,0.52970442]
[1772752713482,0.48575015,89.044,88.99,0.28432314]
[1772752713483,0.48575015,89.042,88.995,0.52970442]
[1772752715189,0.48575015,89.042,88.996,0.52970442]
[1772752715363,0.48575015,89.042,88.999,0.52970442]
[1772752716759,0.48575015,89.042,89.001,0.81402756]
[1772752716964,0.2,89.05,89.002,0.52970442]
[1772752716965,0.48575015,89.047,89.002,0.52970442]
[1772752717172,0.2,89.05,89.005,0.52970442]
[1772752717682,0.2,89.05,89.008,0.52970442]
[1772752718264,0.2,89.05,89.011,0.52970442]
[1772752720567,0.2,89.05,89.014,0.52970442]
[1772752720887,0.2,89.05,89.012,39.32054105]
[1772752720888,0.2,89.06,89.017,0.52970442]
[1772752721088,0.48575015,89.059,89.02,0.52970442]
[1772752721384,0.48575015,89.058,89.02,0.52970442]
[1772752724497,0.48575015,89.058,89.022,0.81402756]
[1772752724683,0.48575015,89.058,89.023,0.52970442]
[1772752726486,0.48575015,89.058,89.025,0.52970442]
[1772752729174,0.48575015,89.056,89.027,0.52970442]
[1772752730678,0.48575015,89.056,89.018,11.23368307]
[1772752731179,0.48575015,89.054,89.007,11.23507139]
[1772752731885,0.48575015,89.054,89.008,0.52970442]
[1772752734400,0.48575015,89.052,89.01,0.52970442]
[1772752735489,0.48575015,89.05,89.012,0.52970442]
[1772752738503,0.48575015,89.048,89.014,0.52970442]
[1772752741090,0.49549567,89.046,89.016,0.49249837]
[1772752741408,0.49549567,89.059,89.016,0.49249837]
[1772752742795,0.49549567,89.059,89.017,0.49249837]
[1772752743095,0.49549567,89.056,89.02,0.49249837]
[1772752743996,0.49549567,89.056,89.004,0.49249837]
[1772752745296,0.49549567,89.054,89.006,0.49249837]
[1772752747490,39.30155521,89.055,89.008,0.49249837]
[1772752747491,0.49549567,89.052,89.008,0.49249837]
[1772752747697,28.07253944,89.055,89.009,0.49249837]
[1772752748887,28.07253944,89.055,89.011,0.49249837]
[1772752749797,0.49549567,89.054,89.011,0.49249837]
[1772752750589,67.37106861,89.059,89.013,0.49249837]
[1772752750590,0.49549567,89.052,89.013,0.49249837]
[1772752753504,0.49549567,89.05,89.015,0.49249837]
[1772752756500,0.49549567,89.048,89.017,0.49249837]
[1772752758490,0.49549567,89.046,89.019,0.49249837]
[1772752761395,0.49549567,89.044,89.019,0.49249837]
[1772752762610,0.49549567,89.042,89.019,0.49249837]
[1772752763207,0.49549567,89.042,89.02,11.72592905]
[1772752764797,11.23078132,89.041,89.02,11.72592905]
[1772752765018,0.49549567,89.04,89.02,11.72592905]
[1772752765509,0.49549567,89.04,89.02,0.49249837]
[1772752766923,0.49549567,89.04,89.021,0.49249837]
[1772752771231,0.51133396,89.038,89.021,0.49249837]
[1772752773622,0.51133396,89.042,89.023,0.49094352]
[1772752779123,11.23078132,89.041,89.023,0.49094352]
[1772752781833,0.51133396,89.041,89.023,0.49094352]
[1772752793242,0.2,89.06,89.025,0.49094352]
[1772752793444,0.71133396,89.06,89.025,0.49094352]
[1772752793770,0.51133396,89.058,89.02,11.23338622]
[1772752794053,0.51133396,89.058,89.02,0.49094352]
[1772752794238,0.51133396,89.058,89.022,0.49094352]
[1772752795555,0.51133396,89.059,89.024,0.49094352]
[1772752798151,0.51133396,89.059,89.026,0.49094352]
[1772752798553,0.2,89.07,89.029,0.49094352]
[1772752799252,0.2,89.07,89.031,0.49094352]
[1772752799648,0.2,89.07,89.033,0.49094352]
[1772752800348,0.2,89.07,89.035,0.47917909]
[1772752800735,0.2,89.08,89.036,0.47917909]
[1772752801142,0.48022847,89.079,89.036,0.47917909]
[1772752802256,0.48022847,89.077,89.038,0.47917909]
[1772752802549,0.48022847,89.069,89.032,1.03270162]
[1772752802748,0.48022847,89.069,89.02,11.23332795]
[1772752804850,6.39117625,89.06,89.02,11.23332795]
[1772752805043,0.48022847,89.059,89.02,11.23332795]
[1772752807972,0.48022847,89.057,89.012,0.47917909]
[1772752810043,0.48022847,89.055,89.014,0.47917909]
[1772752810855,0.48022847,89.055,89.013,11.23431408]
[1772752811771,0.48022847,89.055,89.014,0.47917909]
[1772752812063,0.48022847,89.053,89.015,11.71324076]
[1772752812450,0.48022847,89.053,89.016,0.47917909]
[1772752814264,28.07222421,89.056,89.016,0.47917909]
[1772752814265,0.48022847,89.051,89.017,11.23380927]
[1772752814440,0.48022847,89.051,89.017,11.71298836]
[1772752816368,0.48022847,89.049,89.018,0.47917909]
[1772752819572,0.48022847,89.058,89.02,0.47917909]
[1772752820855,0.48022847,89.056,89.022,0.47917909]
[1772752821772,0.48022847,89.056,89.02,11.71250651]
[1772752821955,0.48022847,89.056,89.021,0.47917909]
[1772752822969,0.48022847,89.054,89.023,0.47917909]
[1772752823758,11.22839904,89.06,89.023,0.47917909]
[1772752823969,0.48022847,89.059,89.023,0.47917909]
[1772752826755,0.48022847,89.069,89.025,0.47917909]
[1772752828562,11.22599041,89.079,89.026,0.47917909]
[1772752828762,0.48022847,89.078,89.029,0.47917909]
[1772752832081,0.2,89.08,89.032,0.48756948]
[1772752832082,0.49345559,89.076,89.032,0.48756948]
[1772752833284,11.22624246,89.077,89.032,0.48756948]
[1772752834188,11.71969805,89.077,89.032,0.48756948]
[1772752835479,11.71969805,89.077,89.033,39.31126659]
[1772752835678,11.22624246,89.077,89.034,0.48756948]
[1772752837376,0.69345559,89.08,89.034,0.48756948]
[1772752837575,0.69345559,89.08,89.036,0.48756948]
[1772752838594,11.719446,89.079,89.036,0.48756948]
[1772752839271,0.49345559,89.078,89.036,0.48756948]
[1772752841182,0.49345559,89.078,89.036,0.77189262]
[1772752841386,0.49345559,89.079,89.039,0.48756948]
[1772752842785,0.49345559,89.097,89.043,0.48756948]
[1772752845284,0.49345559,89.097,89.046,0.48756948]
[1772752846489,0.49345559,89.097,89.049,0.48756948]
[1772752848487,0.49345559,89.097,89.052,0.48756948]
[1772752849501,0.2,89.1,89.052,0.48756948]
[1772752849682,0.49345559,89.099,89.052,0.48756948]
[1772752851297,0.49345559,89.099,89.053,39.30243787]
[1772752851483,0.49345559,89.099,89.054,0.48756948]
[1772752853085,0.49345559,89.097,89.044,11.23032668]
[1772752853409,0.49345559,89.097,89.046,11.2301507]
[1772752853410,0.49345559,89.094,89.046,11.2301507]
[1772752853606,0.49345559,89.094,89.046,39.30552747]
[1772752853807,0.49345559,89.094,89.046,39.79309695]
[1772752854003,0.49345559,89.094,89.047,0.48756948]
[1772752854893,0.49345559,89.094,89.046,39.30552747]
[1772752854894,0.49345559,89.092,89.048,11.71746796]
[1772752855102,0.49345559,89.092,89.049,0.48756948]
[1772752857785,0.49345559,89.09,89.051,0.48756948]
[1772752861696,0.48314894,89.088,89.053,0.49960097]
[1772752864708,0.48314894,89.086,89.055,0.49960097]
[1772752865007,0.48314894,89.086,89.03,0.49960097]
[1772752867597,0.48314894,89.084,89.033,0.49960097]
[1772752869917,0.48314894,89.082,89.035,0.49960097]
[1772752872900,11.22548634,89.083,89.022,0.28432314]
[1772752872901,0.48314894,89.08,89.037,0.49960097]
[1772752878425,0.48314894,89.078,89.039,0.49960097]
[1772752880531,0.48314894,89.076,89.041,0.49960097]
[1772752881426,0.48314894,89.074,89.043,0.49960097]
[1772752885635,0.48314894,89.074,89.045,0.49960097]
[1772752886330,0.48314894,89.074,89.03,1.29723797]
[1772752886331,0.48314894,89.072,89.031,28.07981438]
[1772752886628,0.48314894,89.072,89.031,28.57941535]
[1772752886832,0.48314894,89.072,89.032,0.49960097]
[1772752887816,0.48314894,89.07,89.032,0.49960097]
[1772752888933,0.48314894,89.068,89.034,0.49960097]
[1772752891037,0.4917405,89.066,89.034,0.49960097]
[1772752891238,0.4917405,89.066,89.03,1.29723797]
[1772752891819,0.4917405,89.066,89.03,1.77623608]
[1772752892019,0.4917405,89.066,89.031,0.47899811]
[1772752892833,11.22775501,89.065,89.031,11.71096798]
[1772752893039,0.4917405,89.064,89.031,11.71096798]
[1772752893241,0.4917405,89.064,89.032,0.47899811]
[1772752894726,0.4917405,89.062,89.034,0.47899811]
[1772752897544,0.4917405,89.06,89.036,0.47899811]
[1772752901938,0.4917405,89.058,89.036,0.47899811]
[1772752903235,0.4917405,89.058,89.038,0.47899811]
[1772752905252,0.4917405,89.058,89.04,0.47899811]
[1772752906536,0.4917405,89.074,89.04,0.47899811]
[1772752906849,0.4917405,89.079,89.042,0.47899811]
[1772752913152,0.4917405,89.097,89.044,0.47899811]
[1772752913353,0.4917405,89.095,89.046,0.47899811]
[1772752914962,0.4917405,89.095,89.047,0.47899811]
[1772752915332,0.4917405,89.099,89.05,0.47899811]
[1772752916446,0.4917405,89.097,89.053,0.47899811]
[1772752918656,0.4917405,89.095,89.055,0.47899811]
[1772752921662,0.4917405,89.095,89.057,0.48343292]
[1772752923843,0.4917405,89.095,89.059,0.48343292]
[1772752924439,11.42335666,89.1,89.059,0.48343292]
[1772752924638,11.89166158,89.1,89.059,0.48343292]
[1772752924859,0.46830492,89.097,89.061,0.48343292]
[1772752927663,0.46830492,89.097,89.063,0.48343292]
[1772752931045,0.46830492,89.095,89.065,0.48343292]
[1772752933668,0.46830492,89.095,89.067,0.48343292]
[1772752935372,0.46830492,89.095,89.069,0.48343292]
[1772752936774,0.46830492,89.095,89.071,0.48343292]
[1772752939663,0.46830492,89.095,89.072,11.22687264]
[1772752939854,0.46830492,89.095,89.073,0.48343292]
[1772752941066,0.2,89.1,89.075,0.48343292]
[1772752941264,0.46830492,89.099,89.075,0.48343292]
[1772752941574,0.46830492,89.098,89.051,0.48343292]
[1772752941867,0.46830492,89.098,89.042,0.48343292]
[1772752945258,0.46830492,89.096,89.044,0.48343292]
[1772752948672,0.46830492,89.094,89.046,0.48343292]
[1772752951781,0.46566402,89.092,89.048,0.47081967]
[1772752954874,0.46566402,89.09,89.05,0.47081967]
[1772752957376,0.46566402,89.09,89.052,0.47081967]
[1772752957964,0.2,89.1,89.053,0.47081967]
[1772752958173,0.2,89.1,89.056,0.47081967]
[1772752959268,0.2,89.1,89.059,0.47081967]
[1772752964580,0.66566402,89.1,89.06,95.44127553]
[1772752964787,0.66566402,89.1,89.062,0.47081967]
[1772752965163,0.46566402,89.099,89.062,0.47081967]
[1772752965368,0.46566402,89.098,89.062,0.47081967]
[1772752966870,0.46566402,89.098,89.064,0.47081967]
[1772752969687,0.46566402,89.098,89.066,0.47081967]
[1772752972188,0.2,89.1,89.069,0.47081967]
[1772752974893,0.2,89.1,89.072,0.47081967]
[1772752975990,0.66566402,89.1,89.072,0.47081967]
[1772752976397,0.46566402,89.099,89.072,0.47081967]
[1772752976798,0.46566402,89.099,89.074,0.47081967]
[1772752979198,0.46566402,89.099,89.075,11.22649452]
[1772752979899,0.48322888,89.098,89.075,11.22649452]
[1772752980097,0.48322888,89.098,89.07,11.22712473]
[1772752980975,0.2,89.1,89.072,0.46813979]
[1772752981295,0.48322888,89.098,89.07,11.22712473]
[1772752982504,0.48322888,89.096,89.065,0.46813979]
[1772752984601,0.48322888,89.096,89.067,0.46813979]
[1772752985185,0.48322888,89.098,89.067,0.46813979]
[1772752987399,0.48322888,89.098,89.069,0.46813979]
[1772752992292,0.48322888,89.108,89.073,0.46813979]
[1772752992705,0.48322888,89.108,89.074,0.46813979]
[1772752994210,0.48322888,89.106,89.074,0.46813979]
[1772752994506,0.48322888,89.106,89.075,39.76087062]
[1772752994702,0.48322888,89.106,89.076,0.46813979]
[1772752996809,0.48322888,89.106,89.077,11.69438225]
[1772752998005,0.48322888,89.106,89.079,11.22599041]
[1772752998801,0.48322888,89.104,89.079,11.22599041]
[1772752999616,0.48322888,89.104,89.08,0.46813979]
[1772753000615,0.48322888,89.104,89.081,11.22573837]
[1772753000921,0.48322888,89.104,89.082,0.46813979]
[1772753002726,0.48322888,89.104,89.083,11.22548634]
[1772753003016,0.48322888,89.104,89.083,11.69362613]
[1772753003216,0.48322888,89.104,89.083,11.22548634]
[1772753003405,0.48322888,89.104,89.084,0.46813979]
[1772753007720,0.48322888,89.104,89.08,0.46813979]
[1772753008921,0.2,89.11,89.081,11.69387816]
[1772753008922,0.48322888,89.102,89.081,11.69387816]
[1772753010230,0.48322888,89.102,89.081,0.46813979]
[1772753011729,11.22321859,89.101,89.081,0.46813979]
[1772753011912,0.48130207,89.1,89.081,0.46813979]
[1772753026020,0.48130207,89.104,89.083,0.49598454]
[1772753031654,0.48130207,89.108,89.085,0.49598454]
[1772753032652,0.2,89.11,89.085,0.49598454]
[1772753032847,0.48130207,89.109,89.085,0.49598454]
[1772753035749,0.48130207,89.109,89.086,11.22510832]
[1772753035954,0.48130207,89.109,89.087,0.49598454]
[1772753038453,0.48130207,89.109,89.089,0.49598454]
[1772753040359,0.48130207,89.109,89.088,11.22485632]
[1772753040529,0.49092709,89.108,89.074,0.47589322]
[1772753044576,0.49092709,89.108,89.076,0.47589322]
[1772753044962,0.49092709,89.121,89.076,0.47589322]
[1772753045157,0.69092709,89.12,89.077,0.47589322]
[1772753045366,0.49092709,89.119,89.077,0.47589322]
[1772753046554,0.49092709,89.119,89.08,0.47589322]
[1772753047778,0.49092709,89.119,89.083,0.47589322]
[1772753048470,0.69092709,89.13,89.086,0.47589322]
[1772753048689,0.2,89.13,89.086,0.47589322]
[1772753049974,0.2,89.13,89.089,0.47589322]
[1772753051252,0.69092709,89.13,89.089,0.47589322]
[1772753053661,0.49092709,89.129,89.092,0.47589322]
[1772753055671,0.49092709,89.128,89.094,0.47589322]
[1772753057466,0.49092709,89.128,89.095,0.47589322]
[1772753058282,0.49092709,89.128,89.082,4.81639525]
[1772753058283,0.49092709,89.128,89.098,0.47589322]
[1772753059771,0.49092709,89.128,89.101,0.47589322]
[1772753059971,0.49092709,89.128,89.099,11.22347052]
[1772753060282,0.49092709,89.128,89.099,11.69936374]
[1772753060478,0.49092709,89.128,89.1,0.47589322]
[1772753060995,0.49092709,89.126,89.1,0.47589322]
[1772753061165,0.49092709,89.126,89.101,11.69911181]
[1772753061364,0.49092709,89.126,89.102,0.47589322]
[1772753062785,0.49092709,89.126,89.103,11.22296667]
[1772753064285,0.49092709,89.126,89.103,11.69885989]
[1772753065191,0.49092709,89.126,89.104,0.47589322]
[1772753068289,0.49092709,89.126,89.067,61.9]
[1772753068473,0.2,89.13,89.074,0.47589322]
[1772753068474,0.49092709,89.124,89.074,0.47589322]
[1772753071076,0.47062462,89.122,89.076,0.45769325]
[1772753073197,0.47062462,89.12,89.078,0.45769325]
[1772753073495,0.2,89.13,89.079,0.45769325]
[1772753073698,0.47062462,89.129,89.079,0.45769325]
[1772753074402,0.47062462,89.128,89.079,0.45769325]
[1772753075298,0.47062462,89.128,89.082,0.45769325]
[1772753077723,0.47062462,89.128,89.083,39.2892022]
[1772753077928,0.47062462,89.128,89.085,0.45769325]
[1772753078537,0.47062462,89.126,89.085,0.45769325]
[1772753080733,0.47062462,89.126,89.088,0.45769325]
[1772753081433,0.47062462,89.139,89.091,0.45769325]
[1772753082336,0.47062462,89.138,89.091,0.45769325]
[1772753082514,0.47062462,89.137,89.086,11.22510832]
[1772753082714,0.47062462,89.135,89.082,11.22561235]
[1772753083121,0.47062462,89.135,89.083,0.45769325]
[1772753084832,0.47062462,89.133,89.085,0.45769325]
[1772753087424,6.58130173,89.14,89.087,0.28432314]
[1772753087425,0.47062462,89.131,89.087,0.28432314]
[1772753087631,0.47062462,89.131,89.088,0.45769325]
[1772753089843,0.47062462,89.131,89.091,0.45769325]
[1772753091356,0.47062462,89.129,89.091,0.45769325]
[1772753092559,0.47062462,89.129,89.094,0.45769325]
[1772753093254,0.47062462,89.127,89.092,11.22435235]
[1772753093440,0.47062462,89.127,89.093,0.45769325]
[1772753094554,0.47062462,89.099,89.045,11.23027682]
[1772753094738,0.47062462,89.099,89.056,0.46264948]
[1772753095158,6.37937112,89.09,89.056,0.46264948]
[1772753095346,0.47062462,89.089,89.056,0.46264948]
[1772753095852,0.47062462,89.089,89.056,0.06113862]
[1772753096053,0.47062462,89.089,89.045,11.68797007]
[1772753096256,0.47062462,89.089,89.046,0.45769325]
[1772753096647,0.16641519,89.087,89.048,0.45769325]
[1772753098757,0.16633089,89.085,89.049,11.22977237]
[1772753099258,0.16633089,89.085,89.05,0.45769325]
[1772753101240,0.28432314,89.116,89.036,1.39717288]
[1772753101241,0.16616804,89.107,89.052,0.28432314]
[1772753101446,0.16616804,89.107,89.053,0.45445275]
[1772753101846,0.16616804,89.106,89.053,0.45445275]
[1772753103065,0.1660894,89.104,89.055,0.45445275]
[1772753104057,0.16605075,89.111,89.059,0.45445275]
[1772753105362,0.16605075,89.111,89.062,0.45445275]
[1772753105557,0.16601254,89.123,89.065,0.45445275]
[1772753105868,0.16601254,89.129,89.073,0.45445275]
[1772753106170,0.16601254,89.129,89.076,0.45445275]
[1772753107552,0.16601254,89.129,89.079,0.45445275]
[1772753109077,11.21876738,89.137,89.084,3.69383402]
[1772753109246,11.21876738,89.137,89.086,0.45445275]
[1772753109452,0.16586407,89.136,89.086,0.45445275]
[1772753110372,0.16586407,89.136,89.089,0.45445275]
[1772753111146,0.2,89.14,89.092,0.45445275]
[1772753113859,0.2,89.14,89.094,0.45445275]
[1772753114657,0.16568787,89.139,89.094,0.45445275]
[1772753115468,0.2,89.14,89.1,0.45445275]
[1772753116569,0.2,89.14,89.103,0.45445275]
[1772753119058,0.2,89.14,89.105,0.45445275]
[1772753119264,0.2,89.14,89.106,0.45445275]
[1772753122376,0.2,89.14,89.109,0.45445275]
[1772753123868,0.2,89.14,89.112,0.45445275]
[1772753125785,0.2,89.14,89.113,39.27597544]
[1772753125954,0.2,89.14,89.114,0.45445275]
[1772753128878,0.2,89.14,89.116,0.45445275]
[1772753130959,0.2,89.14,89.118,0.45903974]
[1772753132293,0.36507656,89.15,89.12,0.45903974]
[1772753132580,0.2,89.15,89.121,0.45903974]
[1772753133385,1e-08,89.15,89.122,0.45903974]
[1772753134991,1e-08,89.15,89.125,0.45903974]
[1772753136168,0.2,89.16,89.126,0.50117594]
[1772753137284,0.2,89.16,89.129,0.50117594]
[1772753140084,0.2,89.16,89.112,1.12218331]
[1772753140085,0.2,89.16,89.132,0.50117594]
[1772753142585,0.2,89.16,89.113,61.9]
[1772753142586,0.2,89.16,89.134,0.50117594]
[1772753145593,0.2,89.16,89.136,0.50117594]
[1772753152910,0.2,89.16,89.138,0.50117594]
[1772753154606,0.2,89.16,89.14,0.50117594]
[1772753158816,0.2,89.16,89.141,11.21818243]
[1772753158996,0.2,89.16,89.142,0.50117594]
[1772753160217,0.1,89.17,89.115,0.50117594]
[1772753160409,39.2513093,89.169,89.123,0.50117594]
[1772753161322,0.1,89.17,89.125,0.50117594]
[1772753162019,6.37303301,89.16,89.107,11.22246288]
[1772753162219,0.1,89.17,89.088,0.50117594]
[1772753162220,6.37303301,89.15,89.088,0.50117594]
[1772753162598,6.37303301,89.16,89.088,0.50117594]
[1772753163119,6.47303301,89.17,89.093,0.50117594]
[1772753163519,39.2513093,89.169,89.097,3.69383402]
[1772753163727,39.2513093,89.169,89.098,0.50117594]
[1772753165326,39.2513093,89.169,89.103,0.50117594]
[1772753165534,0.1,89.17,89.118,3.69383402]
[1772753165754,0.1,89.17,89.12,0.50117594]
[1772753168018,0.1,89.17,89.123,0.50117594]
[1772753170846,0.1,89.17,89.125,0.78549908]
[1772753171022,0.1,89.17,89.126,0.50117594]
[1772753173863,0.1,89.17,89.129,0.50117594]
[1772753175058,0.1,89.17,89.127,39.269806]
[1772753175263,0.1,89.17,89.128,0.50117594]
[1772753175857,0.1,89.17,89.129,11.2196928]
[1772753178369,0.1,89.17,89.13,0.50117594]
[1772753178551,0.1,89.17,89.131,11.21944104]
[1772753178753,0.1,89.17,89.131,11.72061698]
[1772753178949,0.1,89.17,89.132,0.50117594]
[1772753179641,0.1,89.17,89.131,11.21944104]
[1772753179944,0.1,89.17,89.126,11.7211791]
[1772753181256,0.1,89.17,89.127,0.50117594]
[1772753183868,0.1,89.17,89.129,0.50117594]
[1772753184061,0.1,89.17,89.124,0.50117594]
[1772753184373,6.47303301,89.17,89.11,0.50117594]
[1772753185870,0.1,89.17,89.112,0.14216157]
[1772753186073,0.1,89.17,89.113,0.50117594]
[1772753187850,39.2513093,89.169,89.115,0.50117594]
[1772753190874,0.28432314,89.168,89.117,0.50117594]
[1772753191179,0.28432314,89.168,89.116,11.2213295]
[1772753192381,39.2521897,89.167,89.115,0.50117594]
[1772753192884,6.37303301,89.16,89.11,0.50117594]
[1772753194885,39.2557117,89.159,89.112,0.50117594]
[1772753196680,0.28432314,89.158,89.112,0.50117594]
[1772753197069,39.25659229,89.157,89.112,0.50117594]
[1772753197266,95.33743843,89.157,89.113,0.50117594]
[1772753197485,5.31519465,89.15,89.104,0.50117594]
[1772753197684,5.31519465,89.15,89.107,1.96095349]
[1772753198188,5.31519465,89.15,89.108,0.50117594]
[1772753198767,5.31519465,89.15,89.108,11.72351287]
[1772753198972,5.31519465,89.15,89.109,0.50117594]
[1772753199586,39.26011507,89.149,89.111,0.50117594]
[1772753202072,28.04293934,89.149,89.111,0.50117594]
[1772753202275,28.04293934,89.149,89.108,0.50117594]
[1772753203484,39.26011507,89.149,89.108,0.50117594]
[1772753205594,28.04293934,89.149,89.108,0.50117594]
[1772753206496,0.28432314,89.148,89.107,1.45977755]
[1772753206702,0.28432314,89.148,89.107,1.96095349]
[1772753206903,0.28432314,89.148,89.108,0.50117594]
[1772753208803,28.04293934,89.149,89.096,0.50117594]
[1772753208804,0.28432314,89.139,89.096,0.50117594]
[1772753210800,0.28432314,89.137,89.096,0.50117594]
[1772753211710,0.28432314,89.137,89.098,0.50117594]
[1772753212298,39.26495994,89.138,89.098,0.50117594]
[1772753213011,56.08713697,89.147,89.1,0.50117594]
[1772753216117,56.08713697,89.147,89.088,28.0619177]
[1772753216118,56.08713697,89.147,89.102,0.50117594]
[1772753217816,0.49757836,89.129,89.079,1.73469033]
[1772753218023,0.49757836,89.129,89.08,11.22586439]
[1772753219918,0.49631711,89.127,89.083,0.49700847]
[1772753221924,0.28432314,89.139,89.085,0.49700847]
[1772753221925,0.49631711,89.125,89.085,0.49700847]
[1772753224107,0.49631711,89.119,89.081,0.49700847]
[1772753224326,0.49631711,89.119,89.08,11.22580764]
[1772753224822,0.49631711,89.119,89.08,11.72281611]
[1772753225024,0.49631711,89.119,89.081,0.49700847]
[1772753227032,0.49631711,89.117,89.081,0.49700847]
[1772753227422,0.49631711,89.117,89.054,0.28432314]